bitfinex/quotes_SOLUSD_20220228
["timestamp","ask_amount","ask_price","bid_price","bid_amount"]
[1646060743214,26.95713131,94.221,94.109,108.8]
[1646060743414,24.68,94.224,94.125,108.8]
[1646060743613,24.68,94.224,94.131,108.8]
[1646060744014,1.6829959,94.221,94.131,108.8]
[1646060744612,1.6829959,94.221,94.111,108.8]
[1646060744813,1.6829959,94.221,94.121,108.8]
[1646060745633,1.6829959,94.221,94.125,108.8]
[1646060745814,43.62591588,94.222,94.131,108.8]
[1646060746014,43.62591588,94.222,94.141,108.8]
[1646060746615,1.43895315,94.221,94.141,108.8]
[1646060747013,43.62591588,94.222,94.141,108.8]
[1646060748118,1.47877937,94.221,94.09,68.11295735]
[1646060748315,1.47877937,94.221,94.12,12.67]
[1646060749115,1.47877937,94.221,94.08,65.23]
[1646060749414,1.47877937,94.221,94.09,12.67]
[1646060749614,1.45153811,94.219,94.09,12.67]
[1646060750215,22.80465373,94.218,94.09,12.67]
[1646060750417,1.84632654,94.217,94.09,12.67]
[1646060750615,30.38509712,94.217,94.09,12.67]
[1646060750818,27.21663575,94.216,94.082,15.7766]
[1646060751015,1.53604072,94.215,94.07,12.67]
[1646060751219,4.28282993,94.215,94.07,28.592]
[1646060751417,12.91312577,94.214,94.07,28.592]
[1646060751615,1.6890766,94.213,94.071,3.09277229]
[1646060751816,1.6890766,94.213,94.071,68.32277229]
[1646060752015,1.6890766,94.213,94.071,65.23]
[1646060752215,1.6890766,94.213,94.072,2.99426656]
[1646060752617,22.75508491,94.213,94.072,2.99426656]
[1646060752816,1.6585558,94.212,94.072,2.99426656]
[1646060753217,19.93512854,94.211,94.073,2.74678921]
[1646060753419,1.6585558,94.212,94.073,2.74678921]
[1646060753618,1.6585558,94.212,94.074,65.23]
[1646060753817,1.6585558,94.212,94.075,3.04758215]
[1646060754018,1.6585558,94.212,94.09,12.67]
[1646060754718,1.38074613,94.21,94.09,12.67]
[1646060755220,1.65068825,94.208,94.092,2.80368474]
[1646060755522,55.41865361,94.207,94.092,2.80368474]
[1646060755718,1.55785723,94.206,94.092,2.80368474]
[1646060755922,1.55785723,94.206,94.091,65.23]
[1646060756120,1.55785723,94.206,94.09,12.67]
[1646060756618,26.95713131,94.205,94.09,12.67]
[1646060756822,1.35797471,94.203,94.09,12.67]
[1646060757420,2.74678921,94.202,94.058,29.42937804]
[1646060757624,2.74678921,94.202,94.05,12.67]
[1646060757821,21.06600831,94.201,94.052,2.66605896]
[1646060758021,21.06600831,94.201,94.062,108.8]
[1646060758222,1.36990851,94.2,94.06,12.67]
[1646060758425,1.36990851,94.2,94.04,12.67]
[1646060758426,3.36,94.187,94.04,12.67]
[1646060758622,59.35349061,94.185,94.04,12.67]
[1646060758821,1.47472106,94.184,94.043,2.74678921]
[1646060759222,1.81111135,94.182,94.027,15.6879]
[1646060759421,1.81111135,94.182,94.02,65.23]
[1646060759422,3.36,94.177,94.03,12.67]
[1646060759620,12.67,94.18,94.02,12.67]
[1646060759621,3.36,94.167,94.02,12.67]
[1646060759821,53.8493306,94.166,94.02,12.67]
[1646060760020,1.45197567,94.165,94.014,15.7245]
[1646060760222,4.19876488,94.165,94.028,108.8]
[1646060760421,26.93870051,94.164,94.028,108.8]
[1646060760721,12.67,94.16,94.028,108.8]
[1646060760923,1.54791615,94.159,94.028,108.8]
[1646060761321,1.54791615,94.159,94.021,111.1814168]
[1646060761522,1.54791615,94.159,94.062,108.8]
[1646060761822,1.54504976,94.165,94.062,108.8]
[1646060762224,1.54504976,94.165,94.068,108.8]
[1646060762425,53.8493306,94.166,94.07,186.7]
[1646060762624,53.8493306,94.166,94.071,2.25854415]
[1646060763726,23.3781,94.178,94.071,2.25854415]
[1646060763925,1.39628856,94.221,94.072,2.74678921]
[1646060764124,1.39628856,94.221,94.077,108.8]
[1646060764324,1.65346093,94.219,94.094,108.8]
[1646060764527,1.65346093,94.219,94.11,174.03]
[1646060764757,53.79209621,94.218,94.11,174.03]
[1646060764926,1.60014549,94.217,94.121,108.8]
[1646060765126,53.79209621,94.218,94.121,108.8]
[1646060765326,53.79209621,94.218,94.13,65.23]
[1646060765526,53.79209621,94.218,94.141,108.8]
[1646060765726,53.79209621,94.218,94.14,12.67]
[1646060765727,22.6469,94.233,94.144,65.23]
[1646060765928,22.6469,94.233,94.152,65.23]
[1646060766128,15.5647,94.249,94.11,16.1269]
[1646060766129,15.5647,94.249,94.161,108.8]
[1646060766728,49.09347469,94.248,94.161,108.8]
[1646060766928,1.57517872,94.247,94.161,108.8]
[1646060767528,49.09347469,94.248,94.161,108.8]
[1646060767929,49.09347469,94.248,94.171,108.8]
[1646060768932,24.8227,94.268,94.179,108.8]
[1646060769131,1.76246099,94.304,94.191,108.8]
[1646060769330,1.76246099,94.304,94.201,108.8]
[1646060769930,48.64730834,94.303,94.201,108.8]
[1646060770131,1.50546716,94.302,94.201,108.8]
[1646060770732,26.95713131,94.302,94.213,108.8]
[1646060770933,48.64730834,94.303,94.213,108.8]
[1646060771632,1.64318074,94.302,94.213,108.8]
[1646060771832,1.64318074,94.302,94.214,108.8]
[1646060772835,1.64318074,94.302,94.191,108.8]
[1646060773434,1.64318074,94.302,94.198,65.23]
[1646060773634,1.64318074,94.302,94.211,108.8]
[1646060773837,48.64730834,94.303,94.211,108.8]
[1646060774334,1.64662364,94.302,94.211,108.8]
[1646060775233,1.24662364,94.302,94.211,108.8]
[1646060775936,1.24662364,94.302,94.21,12.67]
[1646060776136,1.24662364,94.302,94.191,108.8]
[1646060776434,1.37606978,94.3,94.17,12.67]
[1646060776636,1.37606978,94.3,94.15,12.67]
[1646060776834,1.48190905,94.298,94.15,12.67]
[1646060777038,1.48190905,94.298,94.151,108.8]
[1646060777236,25.5032242,94.297,94.12,12.67]
[1646060777436,0.6,94.247,94.08,12.67]
[1646060777638,0.6,94.207,94.029,2.98378522]
[1646060777936,12.67,94.2,94.04,12.67]
[1646060778135,12.67,94.2,94.014,15.68]
[1646060778136,45.13995698,94.199,94.05,77.9]
[1646060778337,47.7730772,94.198,94.061,108.8]
[1646060778535,1.60861775,94.197,94.061,111.25072226]
[1646060778935,4.35540696,94.197,94.061,111.25072226]
[1646060779138,2.74678921,94.196,94.061,111.25072226]
[1646060779539,30.04845754,94.195,94.041,108.8]
[1646060779764,12.67,94.18,94.041,108.8]
[1646060779938,53.55204849,94.179,94.041,108.8]
[1646060780140,81.44227629,94.179,94.041,108.8]
[1646060780339,31.49217548,94.178,94.021,108.8]
[1646060780541,63.29587705,94.178,94.022,3.00537299]
[1646060780739,1.59444028,94.176,94.022,3.00537299]
[1646060781140,1.82589898,94.174,94.024,65.23]
[1646060781343,12.67,94.17,94.035,108.8]
[1646060781647,1.68122488,94.169,94.042,2.76305125]
[1646060781841,4.42801409,94.169,94.042,2.76305125]
[1646060782244,2.74678921,94.168,94.042,2.76305125]
[1646060782441,2.74678921,94.168,94.042,108.8]
[1646060782642,30.04845754,94.167,94.021,108.8]
[1646060782941,4.36403771,94.166,94.022,2.49015646]
[1646060783342,2.74678921,94.165,94.022,2.49015646]
[1646060783542,48.51874059,94.164,94.022,2.49015646]
[1646060783742,1.41042643,94.163,94.022,2.49015646]
[1646060783942,4.15721564,94.163,94.022,2.49015646]
[1646060784145,31.45888397,94.163,94.021,108.8]
[1646060784345,1.43223539,94.161,94.021,108.8]
[1646060784743,1.53958096,94.159,94.02,12.67]
[1646060784943,1.53958096,94.159,94.0,12.67]
[1646060785143,1.53958096,94.159,93.98,12.67]
[1646060785144,0.6,94.147,93.98,12.67]
[1646060785344,12.67,94.14,93.97,12.67]
[1646060785545,1.41316832,94.138,93.97,12.67]
[1646060785945,3.36,94.137,93.97,77.9]
[1646060786145,2.74678921,94.137,93.97,12.67]
[1646060786446,2.74678921,94.136,93.97,12.67]
[1646060786846,2.74678921,94.136,93.971,2.87514336]
[1646060787044,1.41468034,94.135,93.971,2.87514336]
[1646060787645,1.41468034,94.135,93.97,121.47]
[1646060787646,1.41468034,94.135,93.973,2.31744972]
[1646060788246,1.41468034,94.135,93.976,2.39070309]
[1646060788447,1.41468034,94.135,93.99,12.67]
[1646060788652,1.41468034,94.135,93.991,2.6522713]
[1646060789049,46.8534,94.139,93.997,65.23]
[1646060789050,23.209,94.139,93.997,65.23]
[1646060789253,23.209,94.139,94.011,174.03]
[1646060789552,1.39525393,94.169,94.021,174.03]
[1646060789752,1.39525393,94.169,94.031,108.8]
[1646060789952,1.39525393,94.169,94.032,2.52934861]
[1646060790153,1.48476182,94.145,94.03,12.67]
[1646060790352,1.48476182,94.145,94.03,121.47]
[1646060790553,1.48476182,94.145,94.031,2.523309]
[1646060792155,1.48476182,94.145,94.03,12.67]
[1646060792355,2.74678921,94.144,94.03,12.67]
[1646060792855,1.48476182,94.145,94.03,12.67]
[1646060794059,4.23155103,94.145,94.03,12.67]
[1646060794460,4.23155103,94.145,94.031,2.92133974]
[1646060794660,4.23155103,94.145,94.031,3.00594459]
[1646060794881,4.23155103,94.145,94.03,12.67]
[1646060795079,1.48476182,94.145,94.032,2.68081599]
[1646060796280,1.48476182,94.145,94.032,67.91081599]
[1646060796479,2.74678921,94.17,94.048,65.23]
[1646060796681,1.5254269,94.175,94.051,108.8]
[1646060796883,55.08714191,94.146,94.041,2.32371581]
[1646060797081,1.8383308,94.145,94.046,108.8]
[1646060797480,53.73348027,94.146,94.05,174.03]
[1646060797681,55.4156209,94.146,94.05,108.8]
[1646060798483,53.73348027,94.146,94.041,108.8]
[1646060798684,55.11854707,94.146,94.042,2.50856855]
[1646060799785,1.41766768,94.145,94.016,111.07718012]
[1646060800185,1.41766768,94.145,94.02,174.03]
[1646060800385,1.41766768,94.145,94.02,108.8]
[1646060800585,7.0892062,94.144,94.02,108.8]
[1646060800987,2.74678921,94.143,94.02,108.8]
[1646060801184,2.74678921,94.143,93.996,108.8]
[1646060801185,32.47756529,94.143,93.996,108.8]
[1646060801386,12.67,94.14,93.961,2.70241806]
[1646060801586,1.38499892,94.139,93.958,16.2438]
[1646060801785,3.36,94.127,93.94,12.67]
[1646060801988,56.00347635,94.138,93.95,12.67]
[1646060802185,51.74188228,94.116,93.951,108.8]
[1646060802389,12.67,94.11,93.951,108.8]
[1646060802587,1.5801046,94.109,93.951,108.8]
[1646060802789,4.32689381,94.109,93.951,108.8]
[1646060802989,1.42092921,94.108,93.951,108.8]
[1646060803189,60.94440872,94.108,93.936,111.46473519]
[1646060803390,1.7707412,94.106,93.936,108.8]
[1646060803690,1.7707412,94.106,93.94,108.8]
[1646060803991,62.88347951,94.107,93.95,108.8]
[1646060803992,1.51298284,94.104,93.95,108.8]
[1646060804289,108.8,94.089,93.924,108.8]
[1646060804492,108.8,94.087,93.924,108.8]
[1646060804689,1.59557299,94.086,93.924,108.8]
[1646060804890,61.1190525,94.086,93.924,108.8]
[1646060805090,3.36,94.077,93.912,3.12255649]
[1646060805290,50.38473837,94.066,93.891,108.8]
[1646060805489,1.69243666,94.064,93.891,108.8]
[1646060805690,12.67,94.05,93.892,2.36064452]
[1646060805890,54.34277783,94.049,93.892,2.36064452]
[1646060806089,1.62345674,94.048,93.907,108.8]
[1646060806292,24.8745,94.048,93.921,108.8]
[1646060806489,1.36735897,94.047,93.921,108.8]
[1646060807292,1.36735897,94.047,93.922,2.67877425]
[1646060807593,1.81487068,94.047,93.92,108.8]
[1646060807790,2.74678921,94.046,93.92,108.8]
[1646060807990,11.99229398,94.046,93.92,108.8]
[1646060808191,1.63182365,94.045,93.92,108.8]
[1646060808391,1.63182365,94.045,93.88,65.23]
[1646060808392,39.68867716,94.045,93.88,65.23]
[1646060808592,39.68867716,94.045,93.844,11.11538207]
[1646060808593,110.62926941,94.043,93.874,108.8]
[1646060808793,125.14518921,94.044,93.861,108.8]
[1646060808794,3.36,94.027,93.861,108.8]
[1646060808992,55.00767663,94.024,93.861,108.8]
[1646060809192,12.67,94.01,93.861,108.8]
[1646060809394,46.03970025,94.008,93.861,108.8]
[1646060809596,1.57371675,94.007,93.861,108.8]
[1646060809994,4.14624894,94.007,93.861,108.8]
[1646060810199,19.73942875,94.006,93.861,108.8]
[1646060810394,1.84483187,94.005,93.861,108.8]
[1646060810594,12.67,94.0,93.861,108.8]
[1646060810895,1.8455883,93.999,93.861,108.8]
[1646060811093,32.92374981,93.999,93.861,108.8]
[1646060811294,23.2604,93.998,93.861,108.8]
[1646060811594,34.69361179,93.997,93.852,108.8]
[1646060811795,34.69361179,93.997,75.0,55.02153482]
[1646060811796,0.6,93.987,93.82,12.67]
[1646060811995,12.67,93.98,93.82,12.67]
[1646060812198,1.62797977,93.978,93.82,12.67]
[1646060812594,4.9935897,93.977,93.83,174.03]
[1646060812795,1.540814,93.975,93.831,2.51321649]
[1646060812995,12.67,93.97,93.831,2.51321649]
[1646060813194,56.96286189,93.969,93.831,2.51321649]
[1646060813394,1.72856793,93.968,93.818,15.8115]
[1646060813594,65.96704871,93.968,93.819,108.8]
[1646060813794,4.23752899,93.967,93.819,108.8]
[1646060813994,37.05320728,93.967,93.819,108.8]
[1646060814196,58.84368397,93.966,93.809,3.04598478]
[1646060814394,1.77066574,93.965,93.808,77.5236]
[1646060814593,67.25498841,93.965,93.808,77.5236]
[1646060814796,35.52708646,93.964,93.809,108.8]
[1646060814995,12.67,93.95,93.81,2.56398964]
[1646060815194,50.75679529,93.948,93.81,2.56398964]
[1646060815496,1.79191517,93.947,93.81,2.56398964]
[1646060815695,4.53870438,93.947,93.81,2.56398964]
[1646060816297,4.33204637,93.946,93.81,2.56398964]
[1646060817198,31.93993622,93.945,93.81,15.23398964]
[1646060817401,1.55129621,93.944,93.811,2.74678921]
[1646060817599,12.67,93.94,93.808,77.5236]
[1646060818000,1.62166754,93.939,93.808,77.5236]
[1646060818200,34.26841968,93.939,93.808,77.5236]
[1646060818400,38.83675214,93.939,93.809,108.8]
[1646060818599,37.1232559,93.938,93.808,77.5236]
[1646060818799,1.75427068,93.937,93.8,2.90731455]
[1646060819005,1.75427068,93.937,93.789,2.74678921]
[1646060819204,110.627473,93.935,93.747,112.6]
[1646060819403,51.55109153,93.905,93.747,112.6]
[1646060819610,51.55109153,93.905,93.736,2.47344224]
[1646060819611,12.67,93.9,93.736,2.47344224]
[1646060819804,1.6555119,93.899,93.736,2.47344224]
[1646060820105,35.71703208,93.899,93.736,2.47344224]
[1646060820303,35.39354135,93.898,93.736,2.47344224]
[1646060820503,1.60198114,93.897,93.735,15.8543]
[1646060820703,66.70827232,93.897,93.735,15.8543]
[1646060820904,1.55873807,93.896,93.736,108.8]
[1646060821104,4.30552728,93.896,93.737,3.01206865]
[1646060821307,2.74678921,93.895,93.741,108.8]
[1646060821504,2.74678921,93.895,93.742,2.50361019]
[1646060821704,1.68096766,93.903,93.743,108.8]
[1646060821904,1.68096766,93.903,93.746,65.23]
[1646060822104,2.74678921,93.902,93.761,108.8]
[1646060822307,2.74678921,93.902,93.762,2.28203759]
[1646060823304,2.74678921,93.902,93.772,65.23]
[1646060823505,2.74678921,93.902,93.786,65.23]
[1646060823704,2.74678921,93.902,93.793,108.8]
[1646060823903,2.74678921,93.902,93.763,18.51772613]
[1646060823904,2.74678921,93.902,93.806,65.23]
[1646060824105,23.3319,93.904,93.816,65.23]
[1646060824303,24.7465,93.934,93.833,108.8]
[1646060824504,1.49540958,93.945,93.845,108.8]
[1646060824704,1.61498862,93.965,93.852,65.23]
[1646060824906,56.51321326,93.964,93.867,108.8]
[1646060825306,22.914,93.966,93.868,2.42724821]
[1646060825504,22.914,93.966,93.871,108.8]
[1646060825705,23.378,93.997,93.876,65.23]
[1646060825905,23.378,93.997,93.895,108.8]
[1646060826106,28.40155016,94.025,93.904,65.23]
[1646060826305,69.4587,94.041,93.904,65.23]
[1646060826306,45.85254845,94.024,93.912,65.23]
[1646060826504,69.4587,94.041,93.92,65.23]
[1646060826505,23.0703,94.041,93.92,65.23]
[1646060826705,23.0703,94.041,93.931,108.8]
[1646060826905,6.0,94.079,93.941,108.8]
[1646060827107,6.0,94.079,93.944,2.82903174]
[1646060827508,52.96558432,94.078,93.944,2.82903174]
[1646060827706,52.96558432,94.078,93.946,108.8]
[1646060827910,52.96558432,94.078,93.961,108.8]
[1646060828108,52.96558432,94.078,93.971,174.03]
[1646060828308,52.96558432,94.078,93.981,174.03]
[1646060828530,52.96558432,94.078,93.991,108.8]
[1646060828708,52.96558432,94.078,93.992,2.97934736]
[1646060828907,52.96558432,94.078,93.99,12.67]
[1646060829508,1.61064407,94.108,93.99,12.67]
[1646060829813,22.7573,94.109,93.99,12.67]
[1646060830009,1.8272153,94.108,93.99,12.67]
[1646060830610,55.53763614,94.107,93.99,12.67]
[1646060830813,1.50578572,94.106,93.991,5.5370118]
[1646060831010,1.50578572,94.106,93.991,5.18550665]
[1646060831210,1.50578572,94.106,93.991,2.74678921]
[1646060831411,55.53763614,94.107,93.991,113.79950259]
[1646060831613,1.60321314,94.106,93.992,3.03488945]
[1646060832012,1.60321314,94.106,93.99,12.67]
[1646060832211,1.60321314,94.106,93.97,12.67]
[1646060832212,21.59611849,94.105,93.97,12.67]
[1646060832412,1.41101335,94.104,93.97,12.67]
[1646060832812,26.86341231,94.103,93.97,12.67]
[1646060833013,1.635929,94.102,93.971,108.8]
[1646060833211,1.635929,94.102,93.972,2.26285611]
[1646060833812,1.635929,94.102,93.973,2.74678921]
[1646060836436,1.635929,94.102,93.97,12.67]
[1646060836636,12.67,94.1,93.95,12.67]
[1646060836939,1.56577807,94.099,93.94,12.67]
[1646060837137,4.31256728,94.099,93.94,12.67]
[1646060837336,29.59177071,94.098,93.954,108.8]
[1646060837537,1.60300154,94.097,93.954,108.8]
[1646060837737,4.34979075,94.097,93.954,108.8]
[1646060838036,4.51400339,94.096,93.954,108.8]
[1646060838242,29.59177071,94.096,93.954,108.8]
[1646060838437,4.43779413,94.095,93.954,108.8]
[1646060838638,12.67,94.09,93.954,108.8]
[1646060838838,1.42415209,94.089,93.954,108.8]
[1646060839037,4.1709413,94.089,93.954,108.8]
[1646060839438,2.74678921,94.088,93.954,108.8]
[1646060839638,29.59177071,94.088,93.954,108.8]
[1646060840045,4.43522444,94.087,93.955,2.40963395]
[1646060840247,15.5877,94.1,93.955,2.40963395]
[1646060840446,1.47609206,94.099,93.955,5.15642316]
[1646060840645,4.22288127,94.099,93.956,2.74678921]
[1646060840849,26.8449815,94.098,93.96,12.67]
[1646060841045,1.44274208,94.097,93.96,12.67]
[1646060841246,4.18953129,94.097,93.96,12.67]
[1646060841447,26.8449815,94.096,93.96,12.67]
[1646060841646,1.8731485,94.095,93.931,2.74678921]
[1646060841846,12.67,94.08,93.931,2.74678921]
[1646060842047,58.68603138,94.078,93.932,2.9822049]
[1646060842249,1.72779939,94.077,93.921,3.05090898]
[1646060842448,1.72779939,94.077,93.92,12.67]
[1646060842449,4.4745886,94.077,93.92,12.67]
[1646060842848,2.74678921,94.076,93.921,108.8]
[1646060843050,2.74678921,94.076,93.922,2.36788334]
[1646060843850,1.36727654,94.074,93.921,108.8]
[1646060844056,12.67,94.07,93.921,108.8]
[1646060844250,25.88771308,94.069,93.922,2.90619542]
[1646060844450,1.66577332,94.068,93.922,2.90619542]
[1646060844849,24.4319,94.067,93.922,2.90619542]
[1646060845050,1.58885097,94.066,93.922,2.90619542]
[1646060845450,23.7794,94.065,93.922,2.90619542]
[1646060845649,1.6793789,94.064,93.922,2.90619542]
[1646060846052,4.42616811,94.064,93.92,28.5531]
[1646060846251,12.67,94.06,93.92,15.08139894]
[1646060846449,1.5008367,94.059,93.922,2.8361164]
[1646060846652,4.24762591,94.059,93.922,2.8361164]
[1646060846854,4.24762591,94.059,93.926,65.23]
[1646060847050,2.74678921,94.059,93.941,108.8]
[1646060847250,25.19845048,94.065,93.942,3.06154698]
[1646060847449,1.79389924,94.064,93.942,3.06154698]
[1646060848251,1.79389924,94.064,93.94,12.67]
[1646060848451,4.54068845,94.064,93.94,12.67]
[1646060848853,1.79389924,94.064,93.942,2.95658175]
[1646060850354,2.74678921,94.063,93.941,108.8]
[1646060851156,2.74678921,94.063,93.923,108.8]
[1646060851355,2.74678921,94.063,93.929,108.8]
[1646060851556,2.74678921,94.063,93.943,108.8]
[1646060851755,2.74678921,94.063,93.951,108.8]
[1646060852157,1.79389924,94.064,93.961,108.8]
[1646060853258,23.7794,94.065,93.969,108.8]
[1646060853460,1.50063725,94.064,93.977,108.8]
[1646060853662,23.7794,94.065,93.977,108.8]
[1646060854159,23.7794,94.065,93.978,65.23]
[1646060854363,8.27,94.066,93.991,108.8]
[1646060855160,8.27,94.066,94.001,108.8]
[1646060856460,1.75474479,94.121,94.001,108.8]
[1646060856860,57.61056053,94.12,94.001,108.8]
[1646060857060,1.85517046,94.119,94.001,108.8]
[1646060857560,1.85517046,94.119,94.005,108.8]
[1646060857759,4.60195967,94.119,94.005,108.8]
[1646060858160,4.60195967,94.119,93.989,2.71024148]
[1646060858360,4.60195967,94.119,93.989,108.8]
[1646060858759,4.60195967,94.119,93.991,108.8]
[1646060859362,4.60195967,94.119,93.992,2.30207991]
[1646060859762,1.85517046,94.119,94.001,108.8]
[1646060860163,2.74678921,94.118,94.001,108.8]
[1646060860563,2.74678921,94.118,93.989,108.8]
[1646060860964,2.74678921,94.118,93.981,108.8]
[1646060861364,2.76,94.117,93.95,12.67]
[1646060861571,2.76,94.117,93.945,26.28686973]
[1646060861572,3.36,94.097,93.945,26.28686973]
[1646060861765,12.67,94.09,93.944,108.8]
[1646060861965,46.5327763,94.088,93.921,108.8]
[1646060862167,46.5327763,94.088,93.926,65.23]
[1646060862365,46.5327763,94.088,93.941,108.8]
[1646060862366,26.667285,94.087,93.941,108.8]
[1646060862565,1.75822466,94.086,93.941,108.8]
[1646060862765,1.75822466,94.086,93.949,108.8]
[1646060862966,4.50501387,94.086,93.952,65.23]
[1646060863166,2.74678921,94.085,93.963,108.8]
[1646060863965,2.74678921,94.085,93.971,108.8]
[1646060864366,1.75822466,94.086,93.971,108.8]
[1646060864666,44.98309796,94.088,93.993,108.8]
[1646060864866,1.60761344,94.087,93.993,108.8]
[1646060865067,45.9268,94.089,94.0,65.23]
[1646060865267,45.9268,94.089,94.001,108.8]
[1646060865867,24.1575,94.115,93.991,2.32184092]
[1646060865868,1.82892252,94.114,94.009,108.8]
[1646060866067,57.08577227,94.113,94.011,108.8]
[1646060866268,1.7525445,94.112,94.011,108.8]
[1646060866469,24.1575,94.115,94.012,65.23]
[1646060866671,24.1575,94.115,94.019,108.8]
[1646060866867,24.1575,94.115,94.027,108.8]
[1646060867068,24.1575,94.115,94.037,108.8]
[1646060867268,24.1575,94.115,94.041,108.8]
[1646060867671,24.1575,94.115,94.02,18.08699826]
[1646060867870,1.4110082,94.114,94.021,108.8]
[1646060868069,24.1575,94.115,94.021,108.8]
[1646060868271,25.70871203,94.115,94.021,108.8]
[1646060868769,1.49396032,94.114,94.021,108.8]
[1646060869569,1.49396032,94.114,94.001,108.8]
[1646060869969,4.24074953,94.114,94.001,108.8]
[1646060870369,25.06044635,94.113,93.97,12.67]
[1646060870569,12.67,94.1,93.958,108.8]
[1646060870768,24.37731468,94.099,93.958,108.8]
[1646060870968,1.42155464,94.098,93.958,108.8]
[1646060871469,25.93438026,94.097,93.959,108.8]
[1646060871670,1.62699141,94.096,93.947,108.8]
[1646060871872,1.64828675,94.095,93.947,108.8]
[1646060872070,12.67,94.08,93.947,108.8]
[1646060872269,12.67,94.08,93.935,23.5736]
[1646060872270,54.16412718,94.078,93.936,108.8]
[1646060872569,1.66414693,94.077,93.939,65.23]
[1646060872770,4.41093614,94.077,93.94,174.03]
[1646060872969,4.41093614,94.077,93.94,176.77678921]
[1646060873169,2.74678921,94.076,93.94,111.54678921]
[1646060873369,2.74678921,94.076,93.94,108.8]
[1646060873568,27.80723556,94.076,93.94,108.8]
[1646060873769,1.43401791,94.075,93.925,108.8]
[1646060873970,108.8,94.073,93.925,108.8]
[1646060874169,12.67,94.06,93.911,108.8]
[1646060874373,26.45567488,94.059,93.911,108.8]
[1646060874571,1.37948148,94.058,93.911,108.8]
[1646060874775,108.8,94.057,93.901,108.8]
[1646060874972,133.86044635,94.057,93.901,108.8]
[1646060875171,29.19020017,94.056,93.901,108.8]
[1646060875373,1.62654646,94.055,93.888,108.8]
[1646060875673,0.6,94.007,93.812,76.5004]
[1646060875871,12.67,94.0,93.82,12.67]
[1646060876071,1.77525436,93.998,93.82,12.67]
[1646060876272,1.38599006,93.997,93.82,12.67]
[1646060876477,28.37993508,93.997,93.83,174.03]
[1646060876674,4.3548634,93.996,93.83,174.03]
[1646060876877,1.47603625,93.995,93.83,108.8]
[1646060877075,29.74073423,93.995,93.813,2.38817049]
[1646060877295,53.27617206,93.994,93.813,2.38817049]
[1646060877475,12.67,93.98,93.813,2.38817049]
[1646060877675,12.67,93.98,93.812,92.7382]
[1646060877676,1.83849857,93.978,93.827,65.23]
[1646060877877,53.22077781,93.977,93.828,2.27084978]
[1646060878075,1.74320681,93.976,93.828,2.27084978]
[1646060878275,1.74320681,93.976,93.832,2.99429681]
[1646060878682,2.74678921,93.975,93.832,2.99429681]
[1646060878875,2.74678921,93.975,93.831,65.23]
[1646060879074,12.67,93.97,93.834,108.8]
[1646060879275,1.48696201,93.969,93.833,64.73]
[1646060879478,1.48696201,93.969,93.834,2.92304644]
[1646060880077,1.48696201,93.969,93.837,173.53]
[1646060880277,2.74678921,93.968,93.838,2.93261361]
[1646060880475,2.74678921,93.968,93.837,64.73]
[1646060880677,4.48169336,93.968,93.837,64.73]
[1646060880876,1.81372941,93.966,93.837,64.73]
[1646060881076,1.81372941,93.966,93.823,108.8]
[1646060881276,1.81372941,93.966,93.838,65.23]
[1646060881277,1.61150674,93.965,93.838,65.23]
[1646060881478,4.35829595,93.965,93.812,76.5004]
[1646060881777,1.58431923,93.963,93.812,76.5004]
[1646060881980,12.67,93.95,93.812,76.5004]
[1646060882179,47.24824335,93.948,93.807,108.8]
[1646060882380,1.8223646,93.947,93.791,108.8]
[1646060882678,1.8223646,93.947,93.792,3.04961568]
[1646060882877,28.83164243,93.947,93.792,3.04961568]